bitfinex/quotes_BTCUSD_20250620
["timestamp","ask_amount","ask_price","bid_price","bid_amount"]
[1750437992650,4.97653418,103920.0,103910.0,0.2409677]
[1750437993154,4.88126424,103920.0,103910.0,0.2409677]
[1750437993370,4.87164183,103920.0,103910.0,0.2409677]
[1750437994492,4.84084173,103920.0,103910.0,0.2409677]
[1750437994720,4.84084183,103920.0,103910.0,0.2409677]
[1750437995411,4.86008665,103920.0,103910.0,0.2384477]
[1750437995629,5.06216507,103920.0,103910.0,0.20957787]
[1750437995847,4.8928873,103920.0,103910.0,0.22882445]
[1750437996066,4.9120908,103920.0,103910.0,0.22882445]
[1750437996286,5.10454653,103920.0,103910.0,0.2192013]
[1750437996506,4.8928873,103920.0,103910.0,0.24807075]
[1750437996954,4.84084211,103920.0,103910.0,0.24807075]
[1750437997382,4.85046452,103920.0,103910.0,0.24807075]
[1750437998016,4.86008702,103920.0,103910.0,0.24807075]
[1750437998304,4.52008702,103920.0,103910.0,0.24807075]
[1750437998537,3.562761,103920.0,103910.0,0.3246116]
[1750437998774,4.03180132,103920.0,103910.0,0.3257616]
[1750437999215,4.04142355,103920.0,103910.0,0.3257616]
[1750437999451,4.03180132,103920.0,103910.0,0.3257616]
[1750437999690,4.04142345,103920.0,103910.0,0.2943116]
[1750437999924,4.05104577,103920.0,103910.0,0.2943116]
[1750438000168,4.04142345,103920.0,103910.0,0.2943116]
[1750438000469,4.04142345,103920.0,103910.0,0.19995425]
[1750438000470,4.70291978,103920.0,103910.0,0.19995425]
[1750438000707,4.73392117,103920.0,103910.0,0.19995425]
[1750438000938,4.76283328,103920.0,103910.0,0.21920139]
[1750438001195,4.72221087,103920.0,103910.0,0.20247425]
[1750438001440,4.8793898,103920.0,103910.0,0.01]
[1750438001690,5.0817598,103920.0,103910.0,0.01]
[1750438002624,5.0817598,103920.0,103910.0,0.20247425]
[1750438002839,5.0817598,103920.0,103910.0,0.21209796]
[1750438003063,5.0817598,103920.0,103910.0,0.22172139]
[1750438003283,5.0817598,103920.0,103910.0,0.01]
[1750438004412,5.4217598,103920.0,103910.0,0.01]
[1750438007151,5.4217598,103920.0,103910.0,0.20247425]
[1750438007603,5.4217598,103920.0,103910.0,0.01]
[1750438008306,5.4217598,103920.0,103910.0,0.20247425]
[1750438008798,5.4217598,103920.0,103910.0,0.01]
[1750438011194,5.4506738,103920.0,103910.0,0.01]
[1750438012333,5.4735487,103920.0,103910.0,0.01]
[1750438015012,5.4417787,103920.0,103910.0,0.20247425]
[1750438015226,5.2123839,103920.0,103910.0,0.20247425]
[1750438015445,5.3725439,103920.0,103910.0,0.25412121]
[1750438015664,5.349669,103920.0,103910.0,0.25412121]
[1750438016128,5.37256926,103920.0,103910.0,0.25412121]
[1750438016342,5.37256926,103920.0,103910.0,0.24449787]
[1750438016557,5.37256926,103920.0,103910.0,0.21209787]
[1750438016772,5.46783911,103920.0,103910.0,0.21209787]
[1750438016983,5.46783911,103920.0,103910.0,0.22172139]
[1750438018071,5.46783911,103920.0,103910.0,0.27256806]
[1750438018280,5.46783911,103920.0,103910.0,0.30326806]
[1750438018727,5.46783911,103920.0,103910.0,0.29364482]
[1750438018959,5.46783911,103920.0,103910.0,0.23134482]
[1750438019179,5.46783911,103920.0,103910.0,0.24096816]
[1750438019390,5.46783911,103920.0,103910.0,0.25422139]
[1750438019822,5.46783911,103920.0,103910.0,0.26384482]
[1750438020027,5.46783911,103920.0,103910.0,0.29544482]
[1750438020028,5.18038268,103920.0,103910.0,0.29544482]
[1750438020245,5.25799883,103920.0,103910.0,0.29544482]
[1750438020465,5.25799883,103920.0,103910.0,0.27619787]
[1750438020687,5.25799883,103920.0,103910.0,0.24459787]
[1750438020956,5.35327776,103920.0,103910.0,0.01]
[1750438021181,3.76087823,103900.0,103890.0,0.0318908]
[1750438021449,5.34999372,103900.0,103890.0,9.08e-05]
[1750438021709,5.38336372,103900.0,103890.0,9.08e-05]
[1750438021925,5.40626021,103900.0,103890.0,9.08e-05]
[1750438022165,4.56996144,103880.0,103870.0,0.0001]
[1750438022399,5.4553785,103880.0,103870.0,0.0001]
[1750438022655,5.4883785,103880.0,103870.0,0.0001]
[1750438022874,5.5173065,103880.0,103870.0,0.0001]
[1750438023327,5.54018543,103880.0,103870.0,0.0001]
[1750438023558,5.5173065,103880.0,103870.0,0.0001]
[1750438023994,5.57342212,103880.0,103870.0,0.0001]
[1750438024432,5.56942212,103880.0,103870.0,0.0001]
[1750438024861,5.56942212,103880.0,103860.0,0.0001]
[1750438024862,4.1009366,103870.0,103860.0,0.0001]
[1750438025116,5.34785323,103870.0,103860.0,0.0001]
[1750438026437,5.35185323,103870.0,103860.0,0.0001]
[1750438026885,5.35585323,103870.0,103860.0,0.0001]
[1750438029099,5.38915323,103870.0,103860.0,0.0001]
[1750438029312,5.02981089,103850.0,103840.0,0.00040515]
[1750438029528,5.48665967,103850.0,103840.0,0.00040515]
[1750438029742,5.33702934,103850.0,103840.0,0.00040515]
[1750438030244,4.41819278,103850.0,103840.0,0.00040515]
[1750438030438,4.81294106,103850.0,103840.0,0.00040515]
[1750438030657,4.7189319,103850.0,103840.0,0.03190515]
[1750438030879,4.7093031,103850.0,103840.0,0.03190515]
[1750438031409,4.7093031,103850.0,103840.0,0.00040515]
[1750438031606,4.7103031,103850.0,103840.0,0.00040515]
[1750438031811,4.80557295,103850.0,103840.0,0.00040515]
[1750438032013,4.83450595,103850.0,103840.0,0.00040515]
[1750438033056,4.86344596,103850.0,103840.0,0.00040515]
[1750438033694,4.86344596,103850.0,103840.0,0.19300915]
[1750438033916,4.57568491,103850.0,103840.0,0.28636927]
[1750438034122,4.57440979,103850.0,103840.0,0.29599882]
[1750438034325,4.47913086,103850.0,103840.0,0.29599882]
[1750438034559,4.43745031,103850.0,103840.0,0.29599882]
[1750438034765,0.49049898,103850.0,103840.0,0.34582399]
[1750438034976,0.50975622,103850.0,103840.0,0.29599882]
[1750438035239,0.50012751,103850.0,103840.0,0.29599882]
[1750438035440,0.84975622,103850.0,103840.0,0.29599882]
[1750438035653,0.83049898,103850.0,103840.0,0.29599882]
[1750438035863,0.84012741,103850.0,103840.0,0.29599882]
[1750438036077,0.84975603,103850.0,103840.0,0.29599882]
[1750438036281,0.84012741,103850.0,103840.0,0.29599882]
[1750438036700,0.83049898,103850.0,103840.0,0.29599882]
[1750438036912,0.83049898,103850.0,103840.0,0.31053967]
[1750438037120,0.83049898,103850.0,103840.0,0.47101967]
[1750438037530,0.84975612,103850.0,103840.0,0.47101967]
[1750438037766,0.84975603,103850.0,103840.0,0.47101967]
[1750438037958,0.39033775,103850.0,103840.0,0.47113967]
[1750438038173,0.3710807,103850.0,103840.0,0.47113967]
[1750438038388,0.84012751,103850.0,103840.0,0.27556945]
[1750438038602,0.86901402,103850.0,103840.0,0.30562856]
[1750438038806,1.07122939,103850.0,103840.0,0.2959991]
[1750438039032,0.87864394,103850.0,103840.0,0.30562865]
[1750438039498,4.71563162,103850.0,103840.0,0.03350515]
[1750438039710,4.70600272,103850.0,103840.0,0.23573925]
[1750438039924,4.69637373,103850.0,103840.0,0.22610915]
[1750438040138,4.79165266,103850.0,103840.0,0.00040515]
[1750438040369,4.79165266,103850.0,103840.0,0.19300915]
[1750438040588,4.79165266,103850.0,103840.0,0.00040515]
[1750438041019,4.79165266,103850.0,103840.0,0.20263925]
[1750438041235,4.98450348,103850.0,103840.0,0.00040515]
[1750438041450,5.47579176,103850.0,103840.0,0.00040515]
[1750438042147,5.01637348,103850.0,103840.0,0.00040515]
[1750438042594,5.01608458,103850.0,103840.0,0.00040515]
[1750438042824,5.47550286,103850.0,103840.0,0.00040515]
[1750438044433,0.58498415,103830.0,103820.0,4e-05]
[1750438044655,0.58498415,103830.0,103810.0,0.00291029]
[1750438044656,4.10140396,103820.0,103810.0,0.00291029]
[1750438044875,5.27586945,103820.0,103810.0,0.00287029]
[1750438045088,5.30481045,103820.0,103810.0,0.00287029]
[1750438045549,4.88735217,103820.0,103810.0,0.00287029]
[1750438045772,5.34677045,103820.0,103810.0,0.00287029]
[1750438045995,5.39734979,103820.0,103810.0,0.00287029]
[1750438046214,5.39834979,103820.0,103810.0,0.00287029]
[1750438046920,5.02047711,103820.0,103810.0,0.00287029]
[1750438047138,5.02384711,103820.0,103810.0,0.00287029]
[1750438047353,5.04657858,103820.0,103810.0,0.00287029]
[1750438047565,5.04657858,103820.0,103810.0,0.01184315]
[1750438047993,5.05057858,103820.0,103810.0,0.01184315]
[1750438048205,4.84752858,103820.0,103810.0,0.01184315]
[1750438048425,4.68743711,103820.0,103810.0,0.20450281]
[1750438048642,4.68743711,103820.0,103810.0,0.21413579]
[1750438048865,5.01780525,103820.0,103810.0,0.01184315]
[1750438049520,5.06886613,103820.0,103810.0,0.01184315]
[1750438049972,4.85347039,103820.0,103810.0,0.01184315]
[1750438050190,5.04611149,103820.0,103810.0,0.01184837]
[1750438051553,5.13123223,103820.0,103810.0,0.01184837]
[1750438051768,5.06923223,103820.0,103810.0,0.01184837]
[1750438052005,5.06886223,103820.0,103810.0,0.01184837]
[1750438052227,5.07388329,103820.0,103810.0,0.01184837]
[1750438052895,5.10668329,103820.0,103810.0,0.01184837]
[1750438053122,5.10705329,103820.0,103810.0,0.01184837]
[1750438053804,5.10705329,103820.0,103810.0,0.00287029]
[1750438056235,5.10668329,103820.0,103810.0,0.00287029]
[1750438056453,5.10668329,103820.0,103800.0,0.19262567]
[1750438056454,5.28169121,103810.0,103800.0,0.19262567]
[1750438056673,5.60175202,103810.0,103800.0,0.19262567]
[1750438057806,5.57132263,103810.0,103800.0,0.19262567]
[1750438058027,5.02785875,103810.0,103800.0,0.19262567]
[1750438058333,4.83661875,103810.0,103800.0,0.19262567]
[1750438058545,4.99833761,103810.0,103800.0,0.22447567]
[1750438058758,5.00033761,103810.0,103800.0,0.26595436]
[1750438058981,5.00037761,103810.0,103800.0,0.26480346]
[1750438059197,5.00037761,103810.0,103800.0,0.26595346]
[1750438059415,5.09564746,103810.0,103800.0,0.26595346]
[1750438059648,5.06336016,103810.0,103800.0,0.45863168]
[1750438059866,4.79725761,103810.0,103800.0,0.26595346]
[1750438060087,4.79725761,103810.0,103800.0,0.46826549]
[1750438060312,4.79725761,103810.0,103800.0,0.47855486]
[1750438060313,4.99685236,103810.0,103800.0,0.47855486]
[1750438060529,0.00314061,103810.0,103800.0,0.48818812]
[1750438060749,0.01277275,103810.0,103800.0,0.48818812]
[1750438060978,0.91817449,103810.0,103800.0,0.50613994]
[1750438061200,0.00314061,103810.0,103800.0,0.50613994]
[1750438061419,0.00314061,103810.0,103800.0,0.52068079]
[1750438061639,0.00314061,103810.0,103800.0,0.50272897]
[1750438061856,0.34314061,103810.0,103800.0,0.52067917]
[1750438062763,0.34314061,103810.0,103800.0,0.68207917]
[1750438063432,0.91817449,103810.0,103800.0,0.68207917]
[1750438063649,0.91817449,103810.0,103800.0,0.52067917]
[1750438063866,0.93743905,103810.0,103800.0,0.50613832]
[1750438064080,0.93743905,103810.0,103800.0,0.48818812]
[1750438064303,1.0327089,103810.0,103800.0,0.48818812]
[1750438064515,0.95670445,103810.0,103800.0,0.49782166]
[1750438064741,0.95670436,103810.0,103800.0,0.49782166]
[1750438064959,0.94707166,103810.0,103800.0,0.49782166]
[1750438065178,0.94707166,103810.0,103800.0,0.19262567]
[1750438065179,4.79377237,103810.0,103800.0,0.19262567]
[1750438065400,5.08564961,103810.0,103800.0,0.19262567]
[1750438067423,5.10843055,103810.0,103800.0,0.19262567]
[1750438067648,5.10843055,103810.0,103800.0,0.4584878]
[1750438067649,5.08548961,103810.0,103800.0,0.4584878]
[1750438067870,5.10827213,103810.0,103800.0,0.4584878]
[1750438068081,4.84884228,103810.0,103800.0,0.47775515]
[1750438068296,4.84884228,103810.0,103800.0,0.48738869]
[1750438068535,4.2738084,103810.0,103800.0,0.48738869]
[1750438068741,4.84884228,103810.0,103800.0,0.48738869]
[1750438068955,4.94411213,103810.0,103800.0,0.48738869]
[1750438069173,4.94411213,103810.0,103800.0,0.47775515]
[1750438069391,4.96342134,103810.0,103800.0,0.4273878]
[1750438069866,4.96342134,103810.0,103800.0,0.43702161]
[1750438070078,4.96342134,103810.0,103800.0,0.44665533]
[1750438070536,4.96342134,103810.0,103800.0,0.48908887]
[1750438070975,4.96342134,103810.0,103800.0,0.47945533]
[1750438071418,4.96342134,103810.0,103800.0,0.22392567]
[1750438071855,5.12782134,103810.0,103800.0,0.19262567]
[1750438072549,5.12774134,103810.0,103800.0,0.19262567]
[1750438072981,5.4727994,103810.0,103800.0,0.19262567]
[1750438073194,5.12965879,103810.0,103800.0,0.19262567]
[1750438075203,5.46965879,103810.0,103800.0,0.19262567]
[1750438078338,5.44687627,103810.0,103800.0,0.19262567]
[1750438079230,5.46974535,103810.0,103800.0,0.19262567]
[1750438079445,5.46974535,103810.0,103770.0,0.19363548]
[1750438079446,0.34963511,103780.0,103770.0,0.08254547]
[1750438079672,1.06888001,103780.0,103770.0,0.28605853]
[1750438079901,0.34,103780.0,103770.0,0.28605853]
[1750438080125,0.34,103780.0,103770.0,0.46459938]
[1750438080341,0.36493833,103780.0,103770.0,0.46459938]
[1750438080554,0.36493833,103780.0,103770.0,0.30059938]
[1750438080764,0.36493833,103780.0,103770.0,0.46659938]
[1750438081245,0.8249843,103780.0,103770.0,0.46659938]
[1750438082111,0.36493833,103780.0,103770.0,0.5344944]
[1750438082330,0.34,103780.0,103770.0,0.56187831]
[1750438083002,0.34,103780.0,103770.0,1.02192428]
[1750438083879,0.51364153,103810.0,103800.0,0.29956968]
[1750438084109,0.48469953,103810.0,103800.0,0.46348968]
[1750438084759,0.82469953,103810.0,103800.0,0.46348968]
[1750438084980,3.58706724,103820.0,103810.0,0.28530749]
[1750438085230,4.07162562,103820.0,103810.0,0.28577687]
[1750438085897,0.85286462,103820.0,103810.0,0.30031772]
[1750438086116,0.51286462,103820.0,103810.0,0.30031772]
[1750438086330,0.85286462,103820.0,103810.0,0.30031772]
[1750438086546,0.85486462,103820.0,103810.0,0.30031772]
[1750438086975,0.39481865,103820.0,103810.0,0.30031772]
[1750438087399,0.39881865,103820.0,103810.0,0.30031772]
[1750438087606,0.37430624,103820.0,103810.0,0.30031772]
[1750438088085,0.94894647,103820.0,103810.0,0.30031772]
[1750438088300,0.9736562,103820.0,103810.0,0.30031772]
[1750438089234,0.94534996,103820.0,103810.0,0.30031772]
[1750438089446,0.37070973,103820.0,103810.0,0.30031772]
[1750438090102,0.94534996,103820.0,103810.0,0.30031772]
[1750438090319,0.95498118,103820.0,103810.0,0.46395772]
[1750438090532,0.96461267,103820.0,103810.0,0.46395772]
[1750438090750,0.96461258,103820.0,103810.0,0.46395772]
[1750438090982,0.94534996,103820.0,103810.0,0.46395772]
[1750438091863,0.94534996,103820.0,103810.0,0.30031772]
[1750438092089,0.94534996,103820.0,103810.0,0.46395772]
[1750438092303,0.97358315,103820.0,103810.0,0.46395772]
[1750438092519,0.98321437,103820.0,103810.0,0.46395772]
[1750438092743,0.99284586,103820.0,103810.0,0.46395772]
[1750438093032,1.30002026,103820.0,103810.0,0.26651193]
[1750438093258,4.93479748,103820.0,103810.0,0.00046938]
[1750438093486,5.09835748,103820.0,103810.0,0.00046938]
[1750438093940,5.14171748,103820.0,103810.0,0.00046938]
[1750438094163,5.20152948,103820.0,103810.0,0.00046938]
[1750438095469,5.25736888,103820.0,103810.0,0.00046938]
[1750438097460,5.05044888,103820.0,103810.0,0.00046938]
[1750438097672,5.25736888,103820.0,103810.0,0.00046938]
[1750438103896,5.83200911,103820.0,103810.0,0.00046938]
[1750438104111,5.84620911,103820.0,103810.0,0.00046938]
[1750438104793,5.26516888,103820.0,103810.0,0.00046938]
[1750438105007,5.27716888,103820.0,103810.0,0.00046938]
[1750438105453,5.83254566,103820.0,103780.0,0.00115]
[1750438105672,4.68536704,103790.0,103780.0,0.26830111]
[1750438105889,4.30127559,103790.0,103780.0,0.28757199]
[1750438106102,4.87591582,103790.0,103780.0,0.28757199]
[1750438106520,4.90486382,103790.0,103780.0,0.28757199]
[1750438106736,4.80959397,103790.0,103780.0,0.28757199]
[1750438106956,4.69504492,103790.0,103780.0,0.28757199]
[1750438107170,4.69504492,103790.0,103780.0,0.28857199]
[1750438107394,4.69504492,103790.0,103780.0,0.26930111]
[1750438107609,4.79031477,103790.0,103780.0,0.28957226]
[1750438108035,4.95347477,103790.0,103780.0,0.29920765]
[1750438108392,4.49338359,103790.0,103780.0,0.3088423]
[1750438108655,4.9631096,103790.0,103780.0,0.29920719]
[1750438109658,4.9631096,103790.0,103780.0,0.3088424]
[1750438109877,4.9631096,103790.0,103780.0,0.29920719]
[1750438111094,4.4927044,103790.0,103780.0,0.3088423]
[1750438111307,4.35885218,103790.0,103780.0,0.32338315]
[1750438111954,3.898761,103790.0,103780.0,0.32223315]
[1750438112164,0.80009118,103790.0,103780.0,0.32223315]
[1750438112403,0.80972536,103790.0,103780.0,0.32223315]
[1750438112617,0.80009118,103790.0,103780.0,0.32223315]
[1750438112830,0.80009118,103790.0,103780.0,0.32338315]
[1750438114103,0.81935946,103790.0,103780.0,0.32338315]
[1750438114313,0.81935946,103790.0,103780.0,0.2895718]
[1750438114314,1.04096001,103790.0,103780.0,0.2895718]
[1750438114533,1.20260614,103790.0,103780.0,0.0668]
[1750438114747,1.36552614,103790.0,103780.0,0.0338]
[1750438114985,4.92428714,103790.0,103780.0,0.0338]
[1750438115420,4.92428714,103790.0,103780.0,0.002]
[1750438115838,4.92428714,103790.0,103780.0,0.0333]
[1750438116513,4.92428714,103790.0,103780.0,0.22601535]
[1750438116722,4.92428714,103790.0,103780.0,0.23565111]
[1750438117428,4.92428714,103790.0,103780.0,0.26725111]
[1750438118471,4.91465249,103790.0,103780.0,0.26725111]
[1750438118907,4.91465249,103790.0,103780.0,0.27805678]
[1750438119556,4.91465249,103790.0,103780.0,0.30696222]
[1750438119557,4.6887944,103790.0,103780.0,0.30696222]
[1750438119738,4.89112593,103790.0,103780.0,0.30696222]
[1750438119981,4.90064076,103790.0,103780.0,0.30696222]
[1750438120199,4.89100658,103790.0,103780.0,0.26842102]
[1750438120416,4.88137212,103790.0,103780.0,0.25878535]
[1750438120631,4.96700732,103790.0,103780.0,0.26842093]
[1750438121525,4.96700732,103790.0,103780.0,0.25878535]
[1750438121742,4.96700732,103790.0,103780.0,0.07570576]
[1750438121959,4.95737258,103790.0,103780.0,0.26725111]
[1750438122174,4.95737258,103790.0,103780.0,0.002]
[1750438122829,4.95737258,103790.0,103780.0,0.20435111]
[1750438123048,4.95737258,103790.0,103780.0,0.0346]
[1750438123687,4.95737258,103790.0,103780.0,0.23695102]
[1750438124371,4.95737258,103790.0,103780.0,0.22731535]
[1750438124584,4.95737258,103790.0,103780.0,0.24658669]
[1750438124799,4.95737258,103790.0,103780.0,0.23695111]
[1750438125016,4.95737258,103790.0,103780.0,0.22731535]
[1750438125695,4.95737258,103790.0,103780.0,0.002]
[1750438125910,4.95737258,103790.0,103780.0,0.19471535]
[1750438126123,4.95737258,103790.0,103780.0,0.2773866]
[1750438126341,4.95737258,103790.0,103780.0,0.2785566]
[1750438126568,4.95737231,103790.0,103780.0,0.2881919]
[1750438126798,4.75173231,103790.0,103780.0,0.2881919]
[1750438127022,4.97656142,103790.0,103780.0,0.29782711]
[1750438127449,4.97656142,103790.0,103780.0,0.2785566]
[1750438127704,4.97656142,103790.0,103780.0,0.28819208]
[1750438127916,4.97656142,103790.0,103780.0,0.29782747]
[1750438128131,4.97656142,103790.0,103780.0,0.30746277]
[1750438128347,4.77100142,103790.0,103780.0,0.30746277]
[1750438128560,4.78398361,103790.0,103780.0,0.30746184]
[1750438128990,4.79361817,103790.0,103780.0,0.30746184]
[1750438129411,4.80325282,103790.0,103780.0,0.30746184]
[1750438130264,4.79361817,103790.0,103780.0,0.30746184]
[1750438130480,4.98631561,103790.0,103780.0,0.28819152]
[1750438130696,4.98631561,103790.0,103780.0,0.29782673]
[1750438130697,4.80325356,103790.0,103780.0,0.29782673]
[1750438130910,4.9959509,103790.0,103780.0,0.30746184]
[1750438131119,4.9958309,103790.0,103780.0,0.29782673]
[1750438131335,4.98619653,103790.0,103780.0,0.27855622]
[1750438131801,4.97656197,103790.0,103780.0,0.27855622]
[1750438132023,4.77100197,103790.0,103780.0,0.27855622]
[1750438132246,4.97652197,103790.0,103780.0,0.27855622]
[1750438132470,4.96688732,103790.0,103780.0,0.25928535]
[1750438132684,4.95725258,103790.0,103780.0,0.06657]
[1750438134223,4.95725258,103790.0,103780.0,0.27738669]
[1750438134673,4.95725258,103790.0,103780.0,0.26775111]
[1750438135100,4.95725258,103790.0,103780.0,0.27855678]
[1750438135340,4.95725258,103790.0,103780.0,0.28819236]
[1750438135954,4.95725258,103790.0,103780.0,0.29782784]
[1750438136724,4.95725258,103790.0,103780.0,0.28819236]
[1750438137365,4.98620258,103790.0,103780.0,0.28819236]
[1750438138033,4.99583714,103790.0,103780.0,0.30746305]
[1750438138215,4.99583714,103790.0,103780.0,0.3074624]
[1750438138443,4.80314035,103790.0,103780.0,0.3074624]
[1750438138648,4.59761905,103790.0,103780.0,0.002]
[1750438138852,4.99603677,103790.0,103780.0,0.002]
[1750438139903,4.99603677,103790.0,103780.0,0.19471535]
[1750438140524,4.99603677,103790.0,103780.0,0.002]
[1750438140955,5.05713677,103790.0,103780.0,0.002]
[1750438141168,5.56906333,103790.0,103780.0,0.002]
[1750438141377,5.05252321,103790.0,103780.0,0.002]
[1750438141586,5.02393686,103790.0,103780.0,0.002]
[1750438142026,4.11074714,103780.0,103770.0,0.27904869]
[1750438142235,4.86055318,103780.0,103770.0,0.27904879]
[1750438142441,5.32064436,103780.0,103770.0,0.26824228]
[1750438142650,5.32064436,103780.0,103770.0,0.27904869]
[1750438142858,5.32064436,103780.0,103770.0,0.26941237]
[1750438143099,4.90339318,103780.0,103770.0,0.28868529]
[1750438143311,5.36795661,103780.0,103770.0,0.28868529]
[1750438143521,0.46009118,103760.0,103750.0,0.16304]
[1750438143728,0.46009118,103760.0,103750.0,0.21202858]
[1750438144784,3.78638357,103780.0,103770.0,0.22164289]
[1750438145202,3.78438348,103780.0,103770.0,0.22164289]
[1750438145410,4.11474827,103780.0,103770.0,0.22164289]
[1750438145613,3.78438338,103780.0,103770.0,0.22281289]
[1750438145851,3.55923325,103780.0,103770.0,0.22281289]
[1750438146057,0.00247225,103780.0,103770.0,0.22281289]
[1750438146273,0.46256343,103780.0,103770.0,0.22281289]
[1750438146491,0.00447225,103780.0,103770.0,0.30125374]
[1750438146985,0.34447225,103780.0,103770.0,0.30125374]
[1750438147207,0.00447225,103780.0,103770.0,0.39653267]
[1750438147413,0.46456343,103780.0,103770.0,0.39653267]
[1750438147625,0.00247225,103780.0,103770.0,0.39653267]
[1750438147831,0.34247225,103780.0,103770.0,0.4736789]
[1750438148100,0.00047225,103780.0,103770.0,0.4746789]
[1750438148942,0.00047225,103780.0,103770.0,0.4766789]
[1750438149341,0.00047225,103780.0,103770.0,0.6396789]
[1750438150675,0.00047225,103780.0,103770.0,0.6395989]
[1750438152381,0.46056343,103780.0,103770.0,0.6395989]
[1750438153656,0.23474917,103780.0,103770.0,0.6395989]
[1750438157773,0.80009118,103790.0,103780.0,0.28552152]
[1750438157985,0.80009118,103790.0,103780.0,0.30137298]
[1750438158198,0.46009118,103790.0,103780.0,0.39665191]
[1750438158439,0.01926438,103810.0,103800.0,0.22157883]
[1750438158643,3.7503778,103810.0,103800.0,0.22157883]
[1750438159063,3.75997041,103810.0,103800.0,0.22157883]
[1750438159281,3.5876578,103810.0,103800.0,0.22157883]
[1750438159494,3.5972905,103810.0,103800.0,0.22157883]
[1750438159751,4.7850155,103810.0,103800.0,0.22157883]
[1750438160175,5.317676,103810.0,103800.0,0.22157883]
[1750438160377,5.02974649,103810.0,103800.0,0.22157883]
[1750438160793,5.02011351,103810.0,103800.0,0.22157883]
[1750438161021,5.02411351,103810.0,103800.0,0.22157883]
[1750438161234,5.22640615,103810.0,103800.0,0.22157883]
[1750438161447,5.22940615,103810.0,103800.0,0.22157883]
[1750438161662,5.13201634,103810.0,103800.0,0.22157883]
[1750438162085,5.32459591,103810.0,103800.0,0.22157883]
[1750438162615,5.11267057,103810.0,103800.0,0.22157883]
[1750438163046,5.12230336,103810.0,103800.0,0.22157883]
[1750438163905,5.11267057,103810.0,103800.0,0.22157883]
[1750438164094,4.65257939,103810.0,103800.0,0.22157883]
[1750438164309,4.66221228,103810.0,103800.0,0.22157883]
[1750438164510,4.65257939,103810.0,103800.0,0.22157883]
[1750438164714,4.66221218,103810.0,103800.0,0.22157883]
[1750438165156,4.65257939,103810.0,103800.0,0.22157883]
[1750438165814,4.65257939,103810.0,103800.0,0.22274883]
[1750438166027,4.54767684,103810.0,103800.0,0.22274883]
[1750438166277,4.56694205,103810.0,103800.0,0.25604883]
[1750438166475,4.57657484,103810.0,103800.0,0.25604883]
[1750438166900,4.57657484,103810.0,103800.0,0.22157883]
[1750438166901,4.76923524,103810.0,103800.0,0.22157883]
[1750438167112,4.77039524,103810.0,103800.0,0.22157883]
[1750438167533,5.23048642,103810.0,103800.0,0.22157883]
[1750438167947,5.02703378,103810.0,103800.0,0.22157883]
[1750438168160,5.01712099,103810.0,103800.0,0.22157883]
[1750438168598,5.00748829,103810.0,103800.0,0.22157883]
[1750438168838,5.10275814,103810.0,103800.0,0.22157883]
[1750438169036,5.10275777,103810.0,103800.0,0.25534883]
[1750438169963,5.11239047,103810.0,103800.0,0.25417883]
[1750438170175,5.12202326,103810.0,103800.0,0.22157883]
[1750438170389,5.33745078,103810.0,103800.0,0.21194575]
[1750438170609,5.33861078,103810.0,103800.0,0.23121292]
[1750438171034,5.32897836,103810.0,103800.0,0.22157938]
[1750438171457,5.32897836,103810.0,103800.0,0.23121273]
[1750438171668,5.10525936,103810.0,103800.0,0.23121273]
[1750438171876,4.84770951,103810.0,103800.0,0.23121273]
[1750438172089,5.04283644,103810.0,103800.0,0.24084599]
[1750438172290,5.07173482,103810.0,103800.0,0.22157938]
[1750438172551,0.22157883,103800.0,103790.0,0.19269166]
[1750438172742,0.01926864,103790.0,103780.0,0.44650204]
[1750438172956,0.48899447,103790.0,103780.0,0.25333204]
[1750438173169,1.031326,103790.0,103780.0,0.2121272]
[1750438173378,1.05565182,103790.0,103780.0,0.22176241]
[1750438173587,1.05565182,103790.0,103780.0,0.22176259]
[1750438173802,1.05449182,103790.0,103780.0,0.2313978]
[1750438174012,1.06412665,103790.0,103780.0,0.2313978]
[1750438174223,1.19372665,103790.0,103780.0,0.2313978]
[1750438175068,1.18409219,103790.0,103780.0,0.20249172]
[1750438175288,4.63489955,103790.0,103780.0,0.20249172]
[1750438175493,4.63489955,103790.0,103780.0,0.00977637]
[1750438175707,4.63489955,103790.0,103780.0,0.20249172]
[1750438175937,4.66384755,103790.0,103780.0,0.21212739]
[1750438176145,4.66384755,103790.0,103780.0,0.22176278]
[1750438176368,4.66384755,103790.0,103780.0,0.23139808]
[1750438176594,0.34,103790.0,103780.0,0.30760319]
[1750438176832,0.80009118,103790.0,103780.0,0.32214404]
[1750438177040,0.80009118,103790.0,103780.0,0.30760319]
[1750438179803,0.80972518,103790.0,103780.0,0.30760319]
[1750438180012,0.80009118,103790.0,103780.0,0.30760319]
[1750438180244,0.82899364,103790.0,103780.0,0.30760319]
[1750438180447,4.37600182,103790.0,103780.0,0.23139808]
[1750438180672,4.37600182,103790.0,103780.0,0.00014061]
[1750438180673,4.39706782,103790.0,103780.0,0.00014061]
[1750438180879,4.49779364,103790.0,103780.0,0.20249172]
[1750438181082,4.59306349,103790.0,103780.0,0.2121273]
[1750438181701,4.58342875,103790.0,103780.0,0.20249172]
[1750438182038,4.58342875,103790.0,103780.0,0.21212739]
[1750438182248,4.58342875,103790.0,103780.0,0.22176287]
[1750438182647,4.75520875,103790.0,103780.0,0.22176287]
[1750438183284,4.75520875,103790.0,103780.0,0.20249172]
[1750438183485,4.78830875,103790.0,103780.0,0.19285596]
[1750438183706,4.78830875,103790.0,103780.0,0.20249163]
[1750438184118,4.78830875,103790.0,103780.0,0.20249172]
[1750438184763,4.78830875,103790.0,103780.0,0.2121273]
[1750438185490,4.78830875,103790.0,103780.0,0.22176278]
[1750438185715,4.78830875,103790.0,103780.0,0.23139817]
[1750438185931,4.6599389,103790.0,103780.0,0.23139817]
[1750438186138,4.6599389,103790.0,103780.0,0.24103347]
[1750438186354,4.6599389,103790.0,103780.0,0.23139817]
[1750438189370,4.23041211,103790.0,103780.0,0.24103282]
[1750438189585,4.47375014,103790.0,103780.0,0.24103282]
[1750438189793,4.56901999,103790.0,103780.0,0.24103282]
[1750438190002,4.66632693,103790.0,103780.0,0.23139771]
[1750438190231,4.69847693,103790.0,103780.0,0.23139771]
[1750438191085,4.68884275,103790.0,103780.0,0.20249163]
[1750438191288,4.68884275,103790.0,103780.0,0.21212721]
[1750438191520,4.7841126,103790.0,103780.0,0.21212721]
[1750438192171,4.79704349,103790.0,103780.0,0.00014061]
[1750438192591,4.79704349,103790.0,103780.0,0.19285596]
[1750438193269,4.76484349,103790.0,103780.0,0.19285596]
[1750438193479,4.76484349,103790.0,103780.0,0.20249154]
[1750438194100,4.76484349,103790.0,103780.0,0.21212702]
[1750438194943,3.86823246,103790.0,103780.0,0.20249163]
[1750438195161,4.00709917,103790.0,103780.0,0.22176232]
[1750438195393,4.16893917,103790.0,103780.0,0.24497702]
[1750438195611,4.16893917,103790.0,103780.0,0.20249163]
[1750438195825,4.16893917,103790.0,103780.0,0.21212711]
[1750438196041,4.26420902,103790.0,103780.0,0.2217625]
[1750438196458,4.26420902,103790.0,103780.0,0.2313978]